bitfinex-derivatives/quotes_SOLF0:USTF0_20250818
["timestamp","ask_amount","ask_price","bid_price","bid_amount"]
[1755486619293,9.98105682,184.52,184.49,2.98]
[1755486619596,9.98105682,184.52,184.5,2.98]
[1755486619597,6.1163,184.52,184.5,2.98]
[1755486619998,6.1163,184.52,184.51,2.98]
[1755486620198,9.98060878,184.52,184.51,2.98]
[1755486620393,0.7,184.51,184.47,2.98]
[1755486620593,0.7,184.49,184.47,2.98]
[1755486620793,5.4183,184.46,184.4,5.4198]
[1755486620995,0.7,184.48,184.38,2.98]
[1755486621193,0.7,184.5,184.38,2.98]
[1755486621400,0.7,184.5,184.36,364.12]
[1755486621401,9.28222089,184.49,184.44,5.4185]
[1755486621596,0.7,184.5,184.45,2.98]
[1755486621798,4.56520005,184.49,184.45,2.98]
[1755486622000,3.86520005,184.48,184.45,2.98]
[1755486622197,5.4175,184.48,184.45,2.98]
[1755486622392,5.79701108,184.54,184.45,2.98]
[1755486622599,5.79701108,184.54,184.37,5.79701108]
[1755486622600,9.28134145,184.53,184.49,5.4171]
[1755486622799,0.7,184.55,184.5,3.1]
[1755486622999,3.86575429,184.54,184.5,3.1]
[1755486623200,0.7,184.55,184.51,3.1]
[1755486623399,0.7,184.55,184.52,3.1]
[1755486623601,201.95792029,184.56,184.52,3.1]
[1755486623804,6.1158,184.54,184.52,3.1]
[1755486624099,0.7,184.54,184.52,3.1]
[1755486624300,0.7,184.54,184.53,3.1]
[1755486624498,4.56687751,184.54,184.53,3.1]
[1755486625205,9.28257751,184.54,184.53,3.1]
[1755486625892,3.86687751,184.54,184.53,3.1]
[1755486626798,3.86687751,184.54,184.51,3.1]
[1755486626996,4.56687751,184.53,184.51,3.1]
[1755486627193,201.95792029,184.56,184.44,3.1]
[1755486627399,4.57017576,184.55,184.44,3.1]
[1755486627600,9.28597576,184.54,184.5,3.1]
[1755486627797,3.86954919,184.53,184.5,3.1]
[1755486627998,6.1158,184.54,184.5,3.1]
[1755486628198,3.86944604,184.53,184.5,3.1]
[1755486628400,6.1158,184.54,184.5,3.1]
[1755486628603,3.86979055,184.53,184.5,3.1]
[1755486628796,6.1158,184.54,184.5,3.1]
[1755486629106,3.87012287,184.53,184.5,3.1]
[1755486629300,6.1158,184.54,184.5,3.1]
[1755486629499,3.8701979,184.53,184.5,3.1]
[1755486629703,6.1158,184.54,184.5,3.1]
[1755486629999,3.87004435,184.53,184.5,3.1]
[1755486630200,6.1158,184.54,184.5,3.1]
[1755486630499,0.7,184.52,184.5,3.1]
[1755486630702,0.7,184.52,184.48,5.4174]
[1755486631004,5.416,184.53,184.48,5.4174]
[1755486631005,5.416,184.53,184.49,3.1]
[1755486631205,6.116,184.53,184.49,3.1]
[1755486631399,6.116,184.53,184.49,8.5171]
[1755486631599,6.116,184.53,184.5,3.1]
[1755486632109,5.416,184.53,184.5,3.1]
[1755486632300,3.87882057,184.52,184.5,3.1]
[1755486632500,6.1158,184.54,184.5,3.1]
[1755486632707,3.87806652,184.53,184.5,3.1]
[1755486632907,6.1158,184.54,184.5,3.1]
[1755486633206,3.87768874,184.53,184.5,3.1]
[1755486633409,6.1158,184.54,184.5,3.1]
[1755486633609,3.87960063,184.53,184.5,3.1]
[1755486633797,6.1158,184.54,184.5,3.1]
[1755486633996,3.87854372,184.53,184.5,3.1]
[1755486634197,6.1158,184.54,184.5,3.1]
[1755486634402,9.2948501,184.53,184.49,5.4171]
[1755486634609,5.4161,184.53,184.5,3.1]
[1755486635409,3.87822343,184.52,184.5,3.1]
[1755486635607,5.4161,184.53,184.5,3.1]
[1755486635808,3.87812877,184.52,184.5,3.1]
[1755486636011,5.79701108,184.55,184.37,139.52]
[1755486636210,0.7,184.52,184.45,3.1]
[1755486636405,3.87787377,184.51,184.45,3.1]
[1755486636606,0.7,184.54,184.47,3.1]
[1755486636800,3.87689749,184.53,184.47,3.1]
[1755486637002,3.87689749,184.52,184.47,3.1]
[1755486637203,0.7,184.52,184.47,3.1]
[1755486637398,3.87732073,184.51,184.48,3.1]
[1755486637603,6.1165,184.52,184.48,3.1]
[1755486637908,3.8772248,184.51,184.48,3.1]
[1755486638110,6.1165,184.52,184.48,3.1]
[1755486638309,3.8774961,184.51,184.48,3.1]
[1755486638516,6.1165,184.52,184.48,3.1]
[1755486638704,3.87825857,184.51,184.48,3.1]
[1755486638899,5.416,184.54,184.48,3.1]
[1755486639103,3.87852263,184.53,184.48,3.1]
[1755486639402,5.416,184.54,184.5,3.1]
[1755486639403,3.87852263,184.52,184.5,3.1]
[1755486639613,5.416,184.54,184.5,3.1]
[1755486639807,3.88105958,184.53,184.5,3.1]
[1755486640007,3.88105958,184.52,184.5,3.1]
[1755486640209,6.1155,184.55,184.5,5.4168]
[1755486640409,3.88298314,184.54,184.51,3.1]
[1755486640705,3.88298314,184.53,184.51,3.1]
[1755486640912,3.88298314,184.52,184.51,3.1]
[1755486642101,3.88298314,184.52,184.51,8.5166]
[1755486642604,346.75312029,184.56,184.42,5.79701108]
[1755486642809,3.88713191,184.55,184.43,3.1]
[1755486643007,3.88713191,184.54,184.48,5.79701108]
[1755486643206,201.95792029,184.56,184.49,3.1]
[1755486643399,201.95792029,184.56,184.48,5.79701108]
[1755486643400,3.88793232,184.55,184.51,3.1]
[1755486643605,201.95792029,184.56,184.51,3.1]
[1755486643805,3.88737831,184.55,184.51,3.1]
[1755486644102,201.95792029,184.56,184.55,3.1]
[1755486644305,205.84587408,184.56,184.55,3.1]
[1755486646809,3.88795379,184.56,184.55,8.5154]
[1755486647407,3.88795379,184.56,184.55,3.1]
[1755486648202,3.88795379,184.56,184.55,8.5154]
[1755486648912,3.88795379,184.56,184.55,3.1]
[1755486650009,3.89250902,184.56,184.55,3.1]
[1755486651310,3.89250902,184.56,184.54,5.4157]
[1755486651505,4.59250902,184.55,184.54,3.1]
[1755486651713,3.89250902,184.55,184.45,3.1]
[1755486651907,3.89250902,184.54,184.45,3.1]
[1755486652113,3.89250902,184.53,184.51,2.95]
[1755486652314,0.7,184.55,184.51,2.95]
[1755486652614,0.7,184.52,184.49,2.95]
[1755486652817,3.89096209,184.51,184.49,2.95]
[1755486653118,0.7,184.54,184.49,2.95]
[1755486653309,3.8915204,184.53,184.49,8.3672]
[1755486653509,3.8915204,184.52,184.49,5.4172]
[1755486653709,0.7,184.57,184.51,2.95]
[1755486653910,8.27618288,184.56,184.52,2.95]
[1755486654109,0.7,184.54,184.52,2.95]
[1755486654310,3.89168841,184.53,184.52,2.95]
[1755486654907,3.89168841,184.53,184.52,8.3663]
[1755486655306,3.89168841,184.53,184.52,2.95]
[1755486658113,0.7,184.52,184.51,2.95]
[1755486658320,4.59168841,184.52,184.51,2.95]
[1755486658616,3.89168841,184.52,184.51,2.95]
[1755486660318,4.59168841,184.52,184.41,5.79701108]
[1755486660525,3.89168841,184.51,184.44,5.79701108]
[1755486660724,5.95712603,184.58,184.45,2.95]
[1755486660911,8.27938273,184.57,184.45,2.95]
[1755486661116,4.59299318,184.56,184.45,2.95]
[1755486661311,200.3315581,184.59,184.45,2.95]
[1755486661312,3.89299318,184.55,184.45,2.95]
[1755486661520,3.89299318,184.54,184.45,2.95]
[1755486661722,3.89299318,184.53,184.45,2.95]
[1755486661918,3.89299318,184.52,184.45,2.95]
[1755486662128,3.89299318,184.51,184.45,2.95]
[1755486662327,0.7,184.55,184.45,2.95]
[1755486662532,4.63018817,184.54,184.51,2.95]
[1755486662830,3.93018817,184.53,184.51,2.95]
[1755486663031,3.93018817,184.52,184.51,2.95]
[1755486665330,3.93018817,184.52,184.47,2.95]
[1755486665532,0.7,184.5,184.48,2.95]
[1755486665729,3.93018817,184.49,184.48,2.95]
[1755486667731,3.93018817,184.49,184.45,2.95]
[1755486668031,3.93018817,184.48,184.45,2.95]
[1755486668231,3.93018817,184.47,184.45,2.95]
[1755486668438,6.1167,184.51,184.46,2.95]
[1755486668738,4.63023473,184.5,184.46,2.95]
[1755486668927,4.63023473,184.49,184.45,2.95]
[1755486669131,3.93023473,184.48,184.45,2.95]
[1755486669335,3.93023473,184.47,184.45,2.95]
[1755486669531,6.1172,184.49,184.45,2.95]
[1755486669729,3.93020265,184.48,184.45,2.95]
[1755486669934,10.04810265,184.47,184.45,2.95]
[1755486670237,3.93020265,184.46,184.45,2.95]
[1755486670839,4.63020265,184.46,184.42,2.95]
[1755486671030,4.63020265,184.45,184.42,2.95]
[1755486671339,3.93020265,184.44,184.43,2.95]
[1755486672039,3.93020265,184.44,184.41,2.95]
[1755486672236,0.7,184.44,184.39,5.42]
[1755486672728,0.7,184.44,184.43,2.95]
[1755486672929,4.62924562,184.44,184.43,2.95]
[1755486673943,10.04794562,184.44,184.43,2.95]
[1755486674138,4.62924562,184.44,184.42,2.95]
[1755486674338,0.7,184.44,184.42,2.95]
[1755486674638,4.62696149,184.43,184.33,5.79701108]
[1755486674841,0.7,184.4,184.39,2.95]
[1755486675135,0.7,184.39,184.38,2.95]
[1755486675337,3.92696149,184.39,184.27,2.95]
[1755486675533,3.92282801,184.38,184.27,2.95]
[1755486675730,0.7,184.36,184.29,5.4229]
[1755486675936,5.79701108,184.39,184.3,2.95]
[1755486675937,4.62282801,184.35,184.3,2.95]
[1755486676141,0.7,184.35,184.3,2.95]
[1755486676537,0.7,184.38,184.3,2.95]
[1755486676737,3.91964741,184.37,184.3,2.95]
[1755486676940,0.7,184.38,184.3,2.95]
[1755486677140,3.99575067,184.37,184.3,2.95]
[1755486677337,5.79701108,184.42,184.3,2.95]
[1755486677537,0.7,184.4,184.3,2.95]
[1755486677846,3.99109913,184.39,184.31,2.95]
[1755486678042,5.95712603,184.48,184.26,503.08]
[1755486678240,3.99110773,184.47,184.38,2.95]
[1755486678545,3.99110773,184.46,184.42,2.95]
[1755486678744,0.7,184.49,184.42,2.95]
[1755486679042,3.96873705,184.48,184.44,2.95]
[1755486679248,0.7,184.49,184.44,2.95]
[1755486679544,4.66907149,184.48,184.45,2.95]
[1755486679745,0.7,184.48,184.38,2.95]
[1755486680343,0.7,184.48,184.43,5.4189]
[1755486680542,0.7,184.48,184.44,2.95]
[1755486682143,0.7,184.48,184.44,3.09]
[1755486682446,0.7,184.46,184.38,3.09]
[1755486682650,0.7,184.48,184.38,3.09]
[1755486682843,3.96905101,184.47,184.38,3.09]
[1755486683046,0.7,184.48,184.38,3.09]
[1755486683352,3.96886202,184.47,184.43,3.09]
[1755486683649,0.7,184.47,184.43,3.09]
[1755486683948,0.7,184.47,184.42,5.4193]
[1755486684251,0.7,184.47,184.45,3.09]
[1755486684750,4.01105771,184.46,184.45,3.09]
[1755486684950,0.7,184.47,184.45,3.09]
[1755486685250,0.7,184.47,184.46,3.09]
[1755486685550,4.71123109,184.47,184.46,3.09]
[1755486686142,5.4172,184.49,184.46,3.09]
[1755486686143,5.95712603,184.62,184.47,3.09]
[1755486686337,5.79701108,184.62,184.47,3.09]
[1755486686537,0.7,184.61,184.47,3.09]
[1755486686739,0.7,184.57,184.51,3.09]
[1755486688453,5.4156,184.55,184.51,3.09]
[1755486688747,0.7,184.57,184.49,3.09]
[1755486688952,0.7,184.59,184.52,5.4161]
[1755486689153,0.7,184.59,184.53,3.09]
[1755486689657,6.49701108,184.59,184.53,3.09]
[1755486689850,5.79701108,184.6,184.54,3.09]
[1755486690048,6.1154,184.56,184.54,3.09]
[1755486690651,0.7,184.59,184.43,5.79701108]
[1755486690951,0.7,184.56,184.44,3.09]
[1755486692458,5.4156,184.55,184.5,3.09]
[1755486692949,5.4159,184.54,184.5,3.09]
[1755486693258,0.7,184.53,184.44,3.09]
[1755486693453,5.4169,184.51,184.44,3.09]
[1755486693658,0.7,184.53,184.46,3.09]
[1755486694356,200.44217066,184.58,184.46,5.79701108]
[1755486694357,0.7,184.57,184.46,5.79701108]
[1755486694552,6.1151,184.57,184.5,5.4167]
[1755486694748,200.44217066,184.58,184.51,3.09]
[1755486695747,5.4152,184.56,184.51,3.09]
[1755486696150,6.1152,184.56,184.51,3.09]
[1755486697652,0.7,184.56,184.44,3.09]
[1755486698259,5.4166,184.51,184.45,5.4181]
[1755486698559,5.4166,184.51,184.46,3.09]
[1755486699252,5.417,184.5,184.46,3.09]
[1755486699851,6.1167,184.51,184.46,3.09]
[1755486700162,5.4167,184.51,184.46,3.09]
[1755486700361,5.4164,184.52,184.46,3.09]
[1755486700553,0.7,184.56,184.46,3.09]
[1755486700963,5.4161,184.53,184.46,3.09]
[1755486702060,5.4161,184.53,184.48,5.4175]
[1755486702261,5.4161,184.53,184.49,3.09]
[1755486702452,5.4164,184.52,184.49,3.09]
[1755486704656,5.4167,184.51,184.41,3.09]
[1755486704865,0.7,184.53,184.41,3.09]
[1755486705358,5.418,184.47,184.42,5.4191]
[1755486705558,5.418,184.47,184.43,3.09]
[1755486707464,0.7,184.53,184.43,3.09]
[1755486707857,5.79701108,184.54,184.43,3.09]
[1755486707858,5.4179,184.47,184.43,3.09]
[1755486708057,0.7,184.5,184.43,3.09]
[1755486708661,5.4186,184.45,184.4,5.4196]
[1755486708865,5.79701108,184.44,184.36,3.09]
[1755486709063,0.7,184.43,184.31,3.09]
[1755486709365,145.31712603,184.47,184.31,3.09]
[1755486709560,8.18223024,184.46,184.31,8.88701108]
[1755486709764,0.7,184.44,184.35,3.09]
[1755486710362,0.7,184.46,184.35,3.09]
[1755486711569,5.4187,184.45,184.37,5.4207]
[1755486711766,0.7,184.46,184.38,3.09]
[1755486712464,144.64,184.49,184.38,3.09]
[1755486712764,0.71,184.52,184.38,3.09]
[1755486713565,0.71,184.53,184.42,2.95]
[1755486716358,0.71,184.54,184.35,2.95]
[1755486716562,5.7417407,184.53,184.35,2.95]
[1755486716762,0.71,184.52,184.35,2.95]
[1755486717174,5.4175,184.49,184.35,2.95]
[1755486717368,0.71,184.49,184.35,2.95]
[1755486717871,0.71,184.49,184.43,2.95]
[1755486718378,5.4175,184.48,184.43,2.95]
[1755486718559,6.1275,184.48,184.43,2.95]
[1755486718763,5.4175,184.48,184.43,2.95]
[1755486718970,6.1275,184.48,184.43,2.95]
[1755486719870,150.65712603,184.55,184.43,2.95]
[1755486720170,5.75218271,184.54,184.43,2.95]
[1755486720369,5.4169,184.51,184.43,2.95]
[1755486720572,0.71,184.53,184.43,2.95]
[1755486720965,144.7,184.55,184.44,2.95]
[1755486720966,0.71,184.49,184.44,2.95]
[1755486721169,0.71,184.48,184.46,2.95]
[1755486721669,5.4178,184.47,184.46,2.95]
[1755486722475,4.47920562,184.47,184.46,2.95]
[1755486723068,9.89700562,184.47,184.46,2.95]
[1755486723771,9.89700562,184.47,184.4,5.4198]
[1755486723772,5.4183,184.46,184.4,5.4198]
[1755486723968,4.47920562,184.45,184.44,2.95]
[1755486724273,4.47920562,184.45,184.39,5.4201]
[1755486724472,373.55375323,184.62,184.31,2.95]
[1755486724473,11.14633165,184.44,184.31,2.95]
[1755486724675,11.14633165,184.43,184.31,2.95]
[1755486724972,0.71,184.4,184.34,2.95]
[1755486725170,5.18920562,184.39,184.35,2.95]
[1755486725380,5.95712603,184.4,184.3,5.4226]
[1755486725381,5.18920562,184.38,184.3,5.4226]
[1755486725676,4.47920562,184.37,184.3,5.4226]
[1755486725886,0.71,184.38,184.3,5.4226]
[1755486725887,4.47920562,184.36,184.3,5.4226]
[1755486726065,4.47920562,184.35,184.3,5.4226]
[1755486726368,4.47920562,184.34,184.3,5.4226]
[1755486726573,4.47920562,184.33,184.3,5.4226]
[1755486726773,5.4211,184.36,184.3,5.4226]
[1755486727070,4.4293434,184.35,184.22,9.39375323]
[1755486727280,4.4293434,184.34,184.31,5.4225]
[1755486727575,5.4208,184.37,184.22,9.39375323]
[1755486727576,5.4208,184.37,184.32,2.95]
[1755486727872,9.84506782,184.36,184.22,9.39375323]
[1755486728074,4.42386782,184.35,184.29,2.95]
[1755486728275,4.42386782,184.34,184.29,2.95]
[1755486728475,5.421,184.37,184.32,2.95]
[1755486728774,4.42197509,184.36,184.32,2.95]
[1755486728975,4.42197509,184.35,184.32,2.95]
[1755486729177,4.42197509,184.34,184.32,2.95]
[1755486729377,5.4213,184.36,184.32,2.95]
[1755486729674,4.42103105,184.35,184.32,2.95]
[1755486729877,4.42103105,184.34,184.32,2.95]
[1755486730075,5.4213,184.36,184.32,2.95]
[1755486730276,4.42125296,184.35,184.31,5.4224]
[1755486730477,4.42125296,184.34,184.33,2.95]
[1755486731180,5.23125296,184.34,184.22,9.39375323]
[1755486731375,4.42125296,184.33,184.32,2.95]
[1755486731778,4.42125296,184.33,184.23,2.95]
[1755486731974,4.42125296,184.32,184.23,2.95]
[1755486732171,4.42125296,184.31,184.23,2.95]
[1755486732476,5.4234,184.28,184.23,5.4248]
[1755486732668,5.4234,184.28,184.24,2.95]
[1755486732871,0.81,184.31,184.24,2.95]
[1755486733072,6.2333,184.29,184.25,2.95]
[1755486733272,4.41344443,184.28,184.24,5.4245]
[1755486733477,5.4234,184.28,184.27,2.95]
[1755486733676,0.81,184.27,184.23,2.95]
[1755486733881,0.81,184.27,184.24,2.95]
[1755486734070,4.41044979,184.26,184.25,2.95]
[1755486734478,4.41044979,184.26,184.16,2.95]
[1755486734678,0.81,184.27,184.16,2.95]
[1755486734880,4.40701122,184.26,184.16,2.95]
[1755486735080,0.81,184.24,184.18,5.4263]
[1755486735382,25.68375323,184.32,184.19,2.95]
[1755486735383,4.40701122,184.23,184.19,2.95]
[1755486735581,0.81,184.21,184.19,2.95]
[1755486735884,4.40701122,184.2,184.19,2.95]
[1755486738287,4.40701122,184.2,184.18,5.4261]
[1755486738473,0.81,184.22,184.18,5.4261]
[1755486738673,4.38476716,184.21,184.2,2.95]
[1755486738877,4.38476716,184.21,184.2,8.3757]
[1755486739085,0.81,184.29,184.21,2.95]
[1755486740283,5.4235,184.28,184.22,5.4249]
[1755486740582,2.97,184.27,184.13,2.95]
[1755486740881,5.4235,184.28,184.22,5.4251]
[1755486741182,2.97,184.26,184.24,2.95]
[1755486741382,2.97,184.25,184.21,5.4254]
[1755486741582,2.97,184.26,184.21,5.4254]
[1755486741783,2.97,184.27,184.12,508.06481776]
[1755486741984,2.84,184.29,184.16,2.84]
[1755486742186,5.95712603,184.31,184.16,2.84]
[1755486742485,8.79712603,184.32,184.2,2.84]
[1755486742673,151.89156646,184.34,184.2,2.84]
[1755486742674,8.79712603,184.3,184.2,2.84]
[1755486742877,5.95712603,184.28,184.2,2.84]
[1755486743082,5.95712603,184.28,184.22,2.84]
[1755486743083,2.84,184.25,184.22,2.84]
[1755486743273,2.84,184.25,184.23,2.84]
[1755486743679,5.424,184.26,184.23,2.84]
[1755486743881,2.84,184.24,184.23,2.84]
[1755486744580,2.84,184.3,184.24,2.84]
[1755486745085,2.84,184.3,184.28,2.84]
[1755486745287,2.84,184.3,184.29,2.84]
[1755486746387,2.84,184.3,184.27,2.84]
[1755486746681,2.84,184.29,184.27,2.84]
[1755486746986,8.2633,184.29,184.18,2.84]
[1755486747187,2.84,184.29,184.18,2.84]
[1755486747686,2.84,184.28,184.18,2.84]
[1755486747882,2.84,184.27,184.18,2.84]
[1755486748089,5.4246,184.24,184.19,5.426]
[1755486748389,2.84,184.23,184.21,2.84]
[1755486748589,5.4249,184.23,184.21,2.84]
[1755486748783,2.84,184.22,184.12,508.58481776]
[1755486748983,8.79712603,184.27,184.13,2.84]
[1755486749189,8.79712603,184.27,184.15,2.84]
[1755486749785,2.84,184.26,184.15,2.84]
[1755486749985,2.84,184.24,184.15,2.84]
[1755486750188,2.84,184.24,184.19,2.84]
[1755486750383,2.84,184.24,184.12,365.22489472]
[1755486750384,2.84,184.24,184.13,2.84]
[1755486750695,2.84,184.23,184.17,2.84]
[1755486750891,8.79712603,184.23,184.17,2.84]
[1755486751184,4.34836496,184.22,184.17,2.84]
[1755486751386,2.84,184.19,184.11,2.84]
[1755486751587,4.34836496,184.18,184.11,2.84]
[1755486751787,7.18836496,184.17,184.11,2.84]
[1755486751984,2.84,184.15,184.04,2.84]
[1755486752189,2.84,184.13,184.04,2.84]
[1755486752393,5.4287,184.1,184.06,5.4298]
[1755486752592,4.34836496,184.09,184.07,2.84]
[1755486752886,4.34836496,184.08,184.07,2.84]
[1755486753291,7.18836496,184.08,184.02,143.2]
[1755486753479,4.34836496,184.07,184.06,2.84]
[1755486754181,4.34836496,184.07,184.06,8.2699]
[1755486755700,5.95712603,184.15,184.08,5.429]
[1755486755906,2.84,184.13,184.03,2.84]
[1755486756085,4.24407763,184.12,184.03,2.84]
[1755486756285,4.24407763,184.11,184.01,2.84]
[1755486756486,5.95712603,184.18,184.05,9.39375323]
[1755486756686,7.08241841,184.17,184.06,2.84]
[1755486756995,4.24241841,184.16,184.11,5.4281]
[1755486757196,4.24241841,184.15,184.05,9.39375323]
[1755486757396,4.24241841,184.14,184.13,2.84]
[1755486759289,7.08241841,184.14,184.02,9.39375323]
[1755486759489,2.84,184.12,184.09,2.84]
[1755486759688,7.08241841,184.11,184.09,2.84]
[1755486759895,4.24241841,184.1,184.09,8.269]
[1755486760091,7.08241841,184.1,184.08,2.84]
[1755486760295,4.24241841,184.09,184.08,2.84]
[1755486760994,7.08241841,184.09,183.99,142.62]
[1755486761192,4.24241841,184.08,184.07,2.84]
[1755486761897,2.84,184.07,183.98,0.94548517]
[1755486762097,5.95712603,184.12,183.98,0.94548517]
[1755486762098,4.22722498,184.06,183.99,2.84]
[1755486762400,2.84,184.1,183.99,2.84]
[1755486762600,4.22662896,184.09,183.99,2.84]
[1755486762802,4.22662896,184.08,183.99,2.84]
[1755486763095,4.22662896,184.07,183.99,2.84]
[1755486763297,4.22662896,184.06,183.99,2.84]
[1755486763603,5.4284,184.11,184.06,8.2699]
[1755486763899,5.4284,184.11,183.98,0.94548517]
[1755486763900,2.84,184.09,183.99,2.84]
[1755486764201,7.06723238,184.08,183.99,2.84]
[1755486764403,4.22723238,184.07,183.99,2.84]
[1755486764596,4.22723238,184.06,183.98,0.94548517]
[1755486764789,4.22723238,184.05,183.98,0.94548517]
[1755486764995,2.84,184.1,183.98,0.94548517]
[1755486765301,4.22851972,184.09,183.99,2.84]
[1755486765494,4.22851972,184.08,183.99,2.84]
[1755486765694,4.22851972,184.07,183.99,2.84]
[1755486765894,4.22851972,184.06,183.99,2.84]
[1755486766095,4.22851972,184.05,183.99,2.84]
[1755486766294,2.84,184.08,183.99,2.84]
[1755486766499,4.22634406,184.07,183.99,2.84]
[1755486766699,7.06634406,184.06,183.99,2.84]
[1755486766895,4.22634406,184.05,183.99,2.84]
[1755486767101,7.06634406,184.04,184.02,8.2709]
[1755486767299,4.22634406,184.03,184.02,8.2709]
[1755486771200,5.95712603,184.1,184.07,2.84]
[1755486771401,2.84,184.14,184.07,2.84]
[1755486771605,1.35710215,184.13,184.07,2.84]
[1755486771807,2.84,184.14,184.12,2.84]
[1755486772005,2.88,184.13,184.1,2.89]
[1755486772305,190.67681512,184.21,184.04,9.39375323]
[1755486772306,2.88,184.12,184.11,2.89]
[1755486773100,2.88,184.12,184.04,9.39375323]
[1755486773304,2.88,184.12,184.1,2.89]
[1755486773505,5.95712603,184.19,184.1,2.89]
[1755486773706,2.88,184.18,184.1,2.89]
[1755486773896,1.35709913,184.17,184.1,2.89]
[1755486774208,8.3074,184.15,184.1,2.89]
[1755486774403,2.88,184.14,184.1,2.89]
[1755486774604,2.88,184.12,184.1,8.3186]
[1755486775007,2.88,184.11,184.08,2.89]
[1755486775200,5.4275,184.14,184.08,2.89]
[1755486775405,2.88,184.12,184.01,2.89]
[1755486776608,2.88,184.1,184.01,2.89]
[1755486776804,1.35712338,184.09,184.01,2.89]
[1755486777011,2.88,184.1,184.01,2.89]
[1755486777206,1.35727912,184.09,184.07,5.4293]
[1755486777418,2.88,184.09,184.07,2.89]
[1755486777914,2.88,184.09,184.08,2.89]
[1755486778216,2.88,184.09,184.0,9.39375323]
[1755486778217,4.23727357,184.09,184.06,2.89]
[1755486778413,2.88,184.08,184.06,5.4296]
[1755486778618,2.88,184.08,184.07,2.89]
[1755486780016,2.88,184.09,184.07,2.89]
[1755486780213,2.88,184.16,184.08,2.89]
[1755486780413,2.88,184.14,184.08,2.89]
[1755486780612,2.88,184.12,184.01,2.89]
[1755486780819,2.88,184.1,184.01,2.89]
[1755486781017,2.88,184.08,184.01,2.89]
[1755486781414,2.88,184.08,184.06,5.4296]
[1755486781725,2.88,184.08,184.07,2.89]
[1755486781910,5.95712603,184.15,184.05,5.4301]
[1755486782114,2.88,184.09,184.06,2.89]
[1755486782314,2.88,184.09,184.07,5.4294]
[1755486782516,2.88,184.09,183.97,2.89]
[1755486782816,2.88,184.11,183.97,2.89]
[1755486783020,2.88,184.09,183.97,2.89]
[1755486784015,2.88,184.09,184.06,5.4296]
[1755486784323,5.4287,184.1,184.06,5.4296]
[1755486784621,2.88,184.07,184.06,5.4296]
[1755486785020,2.88,184.07,184.06,8.3196]
[1755486785622,2.88,184.07,184.06,5.4296]
[1755486786824,2.88,184.07,184.06,8.3196]
[1755486787519,2.88,184.1,184.08,8.3192]
[1755486787730,2.88,184.1,184.09,2.89]
[1755486788622,2.88,184.1,184.08,5.4292]
[1755486788928,2.88,184.08,184.02,2.89]
[1755486789916,2.88,184.07,183.96,9.39375323]
[1755486790120,2.88,184.07,184.03,2.89]
[1755486790517,2.88,184.07,184.02,5.4308]